bitfinex/quotes_ETHUSD_20240817
["timestamp","ask_amount","ask_price","bid_price","bid_amount"]
[1723892717265,2.2859,2602.3,2601.8,0.55]
[1723892717473,5.16766,2602.6,2602.0,2.88238]
[1723892717672,2.553342,2602.5,2602.0,2.88238]
[1723892717919,5.16766,2602.6,2602.0,2.88238]
[1723892719008,2.88144,2602.9,2602.2,2.4256]
[1723892719175,2.2859,2603.0,2602.5,2.88176]
[1723892719598,2.2859,2603.0,2602.3,2.88206]
[1723892719599,2.2859,2603.0,2602.4,2.88195]
[1723892719780,5.1672,2603.0,2602.3,2.88206]
[1723892719989,2.2859,2603.0,2602.4,3.43194]
[1723892720323,0.804838,2602.9,2602.5,2.88182]
[1723892720468,2.88118,2603.1,2602.5,2.88182]
[1723892720974,5.16689,2603.3,2602.5,2.88182]
[1723892721315,5.16689,2603.3,2602.6,3.43171]
[1723892721605,5.16689,2603.3,2602.6,3.43173]
[1723892721805,2.88107,2603.2,2602.6,0.55]
[1723892722007,3.397759,2603.2,2602.6,0.55]
[1723892722213,0.516689,2603.2,2602.6,0.55]
[1723892722617,3.397759,2603.2,2602.6,0.55]
[1723892723990,2.8812,2603.1,2602.6,0.55]
[1723892724171,3.87803332,2603.1,2602.6,0.55]
[1723892730127,2.88129,2603.0,2602.3,2.88203]
[1723892730430,2.88129,2603.0,2602.4,3.43194]
[1723892733314,2.88129,2603.0,2602.4,0.55]
[1723892734192,2.88129,2603.0,2602.4,3.43193]
[1723892734806,2.88109,2603.2,2602.5,2.88176]
[1723892735207,2.88109,2603.2,2602.6,2.88166]
[1723892735430,2.88109,2603.2,2602.6,2.88164]
[1723892735634,2.2859,2603.3,2602.7,2.3231]
[1723892735933,2.2859,2603.3,2602.8,3.66371]
[1723892736246,2.2859,2603.3,2602.8,3.4314]
[1723892736395,2.2859,2603.3,2602.8,6.31283]
[1723892736591,2.2859,2603.3,2602.8,3.4314]
[1723892738323,2.2859,2603.3,2602.8,2.891723]
[1723892739602,2.2859,2603.3,2602.9,2.88139]
[1723892739803,2.2859,2603.3,2602.8,2.891723]
[1723892740102,2.2859,2603.3,2602.8,5.773153]
[1723892740325,2.2859,2603.3,2602.9,2.88138]
[1723892740639,2.2859,2603.3,2602.8,2.891723]
[1723892741352,2.2859,2603.3,2602.8,0.55]
[1723892741556,0.22859,2603.2,2602.8,0.55]
[1723892741707,0.22859,2603.2,2602.8,3.43147]
[1723892741907,2.2859,2603.3,2602.8,3.43147]
[1723892742406,2.2859,2603.3,2602.8,3.43143]
[1723892743016,2.2859,2603.3,2602.9,2.88139]
[1723892745007,2.88045,2603.8,2603.2,3.195]
[1723892745207,2.299,2603.9,2603.4,2.88075]
[1723892745507,2.299,2603.9,2603.2,2.88104]
[1723892745760,2.88044,2603.8,2603.3,0.55]
[1723892746108,2.88066,2603.6,2603.0,2.88125]
[1723892746319,2.88066,2603.6,2602.8,2.88148]
[1723892746623,2.88066,2603.6,2602.9,0.55]
[1723892747207,2.299,2603.7,2603.0,2.88125]
[1723892747546,1.0,2603.5,2603.2,2.88103]
[1723892747908,1.0,2603.5,2603.3,2.88095]
[1723892748417,1.0,2603.5,2603.4,2.88084]
[1723892750719,1.0,2603.5,2603.2,2.88103]
[1723892750720,1.0,2603.5,2603.2,5.76202]
[1723892751034,1.0,2603.5,2603.3,0.55]
[1723892751651,1.0,2603.5,2603.3,3.43094]
[1723892752021,1.0,2603.5,2603.3,0.55]
[1723892754546,1.0,2603.5,2603.4,2.88084]
[1723892755925,1.0,2603.5,2603.3,0.55]
[1723892757301,1.0,2603.5,2602.8,2.88146]
[1723892757302,2.3023,2603.4,2602.8,2.88146]
[1723892757473,2.3023,2603.4,2602.5,2.88181]
[1723892757474,0.33023,2603.3,2602.5,2.88181]
[1723892757631,5.1835,2603.1,2602.5,2.88181]
[1723892757833,2.88147,2602.9,2602.3,2.88199]
[1723892758440,2.88144,2602.9,2602.3,2.88199]
[1723892758669,0.80651,2602.9,2602.3,2.88199]
[1723892758975,2.3023,2603.1,2602.5,2.88182]
[1723892759337,2.3023,2603.1,2602.6,2.88172]
[1723892759735,2.3023,2603.1,2602.5,2.88182]
[1723892759947,2.3023,2603.1,2602.6,0.55]
[1723892760192,0.51834,2603.0,2602.6,0.55]
[1723892761146,2.3023,2603.1,2602.6,0.55]
[1723892761353,2.3023,2603.1,2602.6,3.4317]
[1723892761889,2.3023,2603.4,2603.0,2.88124]
[1723892762088,1.0,2603.5,2603.0,0.288124]
[1723892762391,1.0,2603.5,2603.0,2.88121]
[1723892763489,1.0,2603.5,2603.1,2.88115]
[1723892763697,1.0,2603.5,2603.2,2.88098]
[1723892764070,1.0,2603.5,2603.3,0.55]
[1723892764793,1.0,2603.5,2603.3,3.43094]
[1723892765098,1.0,2603.5,2603.4,2.88084]
[1723892765799,1.0,2603.5,2603.4,6.31168]
[1723892765978,1.0,2603.5,2603.4,7.229088]
[1723892770198,1.0,2603.5,2603.4,13.424088]
[1723892770367,1.0,2603.5,2603.4,18.617328]
[1723892770567,0.19853206,2603.5,2603.4,18.617328]
[1723892770772,0.19853206,2603.5,2603.4,19.95305608]
[1723892771090,0.19853206,2603.5,2603.4,19.95308788]
[1723892771289,0.19853206,2603.5,2603.4,18.617328]
[1723892777338,0.19853206,2603.5,2603.4,13.424088]
[1723892779287,0.19853206,2603.5,2603.4,2.88084]
[1723892779492,0.19853206,2603.5,2603.2,5.76201]
[1723892779799,0.19853206,2603.5,2603.3,2.88093]
[1723892780413,0.19853206,2603.5,2603.2,5.76196]
[1723892780617,0.19853206,2603.5,2603.2,2.88097]
[1723892781941,0.19853206,2603.5,2603.0,2.8812]
[1723892782104,0.19853206,2603.5,2603.2,2.88106]
[1723892783741,0.19853206,2603.5,2603.3,2.88095]
[1723892785104,0.19853206,2603.5,2603.4,2.88084]
[1723892786003,0.19853206,2603.5,2603.4,3.43084]
[1723892787155,0.19853206,2603.5,2603.4,6.31168]
[1723892797900,0.19853206,2603.5,2603.4,3.43084]
[1723892798104,0.19853206,2603.5,2603.3,2.88095]
[1723892798320,2.3746,2603.4,2602.9,2.8813]
[1723892798765,2.3746,2603.4,2603.0,2.88126]
[1723892799305,2.3746,2603.4,2602.9,2.8813]
[1723892799504,2.3746,2603.2,2602.7,2.88154]
[1723892799714,2.3746,2603.2,2602.3,6.00198103]
[1723892800009,2.3746,2603.2,2602.9,2.88129]
[1723892800159,2.3746,2603.2,2603.0,2.88128]
[1723892800362,2.3746,2603.2,2602.9,2.88129]
[1723892802904,2.3746,2603.2,2602.7,2.88158]
[1723892803093,2.3746,2603.2,2602.9,2.88131]
[1723892803463,2.3746,2603.2,2603.0,2.88128]
[1723892804210,2.57313206,2603.5,2603.1,2.88118]
[1723892804368,2.57313206,2603.5,2603.2,3.43104]
[1723892805700,2.57313206,2603.5,2603.3,2.88095]
[1723892807687,2.57313206,2603.5,2603.2,0.55]
[1723892808011,2.57313206,2603.5,2603.2,3.43106]
[1723892808415,2.3746,2603.5,2603.2,3.43106]
[1723892809214,2.3746,2603.5,2603.3,2.88093]
[1723892810320,2.3746,2603.8,2603.3,3.512063]
[1723892810522,4.89044178,2604.1,2603.7,2.88051]
[1723892810523,3.57667816,2604.1,2603.7,2.88051]
[1723892810725,2.3746,2604.1,2603.8,0.838051]
[1723892810882,2.3746,2604.1,2603.8,0.55]
[1723892812020,2.3746,2604.1,2603.9,2.88028]
[1723892815932,2.3746,2604.1,2603.8,0.55]
[1723892816233,2.3746,2604.1,2603.8,3.4304]
[1723892817824,2.3746,2604.1,2603.8,0.55]
[1723892818031,2.73226782,2604.1,2603.8,0.55]
[1723892818529,2.73226782,2604.1,2603.5,2.8807]
[1723892818739,2.73226782,2604.1,2603.6,0.55]
[1723892818740,2.3746,2604.1,2603.6,0.55]
[1723892818942,2.3746,2604.1,2603.7,2.88051]
[1723892819144,2.3746,2604.1,2603.8,0.55]
[1723892820275,2.3746,2604.1,2603.8,3.43039]
[1723892822044,2.3746,2604.1,2603.8,0.55]
[1723892824055,2.3746,2604.1,2603.9,2.88019]
[1723892824278,2.3656,2604.3,2603.9,2.88019]
[1723892824679,2.3656,2604.3,2604.0,0.55]
[1723892826080,2.3656,2604.3,2604.1,2.88007]
[1723892827167,2.3656,2604.3,2604.1,2.88]
[1723892827368,7.45,2604.5,2604.2,2.87996]
[1723892830200,2.2713,2604.6,2604.2,2.87996]
[1723892830397,2.2713,2604.6,2604.2,3.510956]
[1723892831747,2.2713,2604.6,2604.2,2.87996]
[1723892834524,2.2713,2604.6,2604.3,2.87984]
[1723892838384,2.2713,2604.6,2604.2,1.327]
[1723892838878,2.2713,2604.6,2604.1,2.88]
[1723892839173,2.2713,2604.6,2604.2,0.55]
[1723892841499,2.2713,2604.6,2604.2,3.42996]
[1723892841780,2.2713,2604.6,2604.3,3.798835]
[1723892842130,2.2713,2604.6,2604.4,4.20671]
[1723892842534,2.4435,2604.9,2604.4,4.20671]
[1723892844713,2.4435,2604.9,2604.6,4.20648]
[1723892845012,2.4435,2605.1,2604.7,2.87933]
[1723892854953,2.3441,2605.2,2604.7,2.87933]
[1723892855546,3.54617816,2605.2,2604.7,2.87933]
[1723892855748,2.3441,2605.2,2604.7,2.87933]
[1723892855900,3.54617816,2605.2,2604.7,2.87933]
[1723892857039,5.29501785,2605.2,2604.7,2.87933]
[1723892857346,6.42525816,2605.0,2604.3,2.87974]
[1723892858170,9.30443816,2605.0,2604.3,2.87974]
[1723892858334,4.1026309,2604.9,2604.3,2.87974]
[1723892858668,5.30470906,2604.9,2604.3,2.87974]
[1723892858816,2.8793,2604.8,2604.1,6.60502]
[1723892859174,2.3441,2604.6,2604.2,0.55]
[1723892861064,3.54617816,2604.6,2604.2,0.55]
[1723892861264,2.3441,2604.6,2604.2,0.55]
[1723892861469,2.3441,2604.6,2603.9,4.20725]
[1723892861470,6.42569816,2604.6,2603.9,4.20725]
[1723892861769,4.08173816,2604.5,2603.8,2.398]
[1723892861931,1.20207816,2604.5,2603.8,7.20739]
[1723892862140,2.87964,2604.5,2603.8,5.88039]
[1723892862323,2.3441,2604.4,2603.8,7.20739]
[1723892862752,3.54617816,2604.4,2603.8,7.20739]
[1723892862975,2.3441,2604.4,2603.8,7.20739]
[1723892863122,2.3441,2604.4,2603.9,3.43027]
[1723892865530,3.54617816,2604.4,2603.9,3.43027]
[1723892865981,2.3441,2604.4,2603.9,3.43027]
[1723892866326,3.54617816,2604.4,2603.9,3.43027]
[1723892866673,2.3441,2604.3,2603.5,2.88066]
[1723892866883,3.54617816,2604.1,2603.6,3.4306]
[1723892867229,2.3441,2604.1,2603.6,3.4306]
[1723892867569,3.54617816,2604.1,2603.6,3.4306]
[1723892867869,2.3441,2604.1,2603.6,3.4306]
[1723892868078,2.3441,2604.1,2603.7,2.8805]
[1723892868982,2.3441,2604.1,2603.7,4.2075]
[1723892869677,2.3441,2604.1,2603.6,0.55]
[1723892869826,2.3441,2604.1,2603.6,3.43061]
[1723892870027,2.3441,2604.1,2603.6,4.75761]
[1723892870226,2.3441,2604.1,2603.7,2.88051]
[1723892871738,2.3441,2604.1,2603.7,3.644327]
[1723892871928,2.3441,2604.3,2603.8,1.877]
[1723892872554,3.54617816,2604.5,2604.0,2.88016]
[1723892872743,3.54617816,2604.5,2604.0,4.20716]
[1723892873268,2.3441,2604.5,2604.0,4.20716]
[1723892873646,2.3441,2604.5,2604.1,2.88005]
[1723892874467,2.3441,2604.5,2604.1,3.588776]
[1723892876590,2.3441,2604.5,2604.1,2.88005]
[1723892879847,2.3441,2604.5,2604.2,0.55]
[1723892883461,2.3441,2604.5,2603.9,2.88025]
[1723892883674,3.54617816,2604.5,2603.9,2.88025]
[1723892883874,3.54617816,2604.5,2604.0,0.55]
[1723892884177,4.66169383,2604.5,2604.0,0.55]
[1723892884475,7.54139383,2604.5,2604.0,0.55]
[1723892884853,2.3741,2604.4,2604.0,0.55]
[1723892885278,5.25391,2604.4,2603.7,2.88048]
[1723892885448,2.3741,2604.4,2603.8,3.4304]
[1723892885778,2.3741,2604.4,2603.8,0.55]
[1723892886075,2.3741,2604.4,2603.8,3.43039]
[1723892887177,2.3741,2604.4,2603.9,2.88027]
[1723892887484,2.3741,2604.4,2604.0,3.4301]
[1723892890216,2.3741,2604.4,2604.1,2.88006]
[1723892892906,2.3741,2604.4,2604.1,2.87998]
[1723892893091,7.45,2604.7,2604.3,2.87974]
[1723892893290,7.45,2604.7,2604.4,3.222684]
[1723892893529,3.57617816,2605.0,2604.4,3.772684]
[1723892894780,3.57617816,2605.0,2604.5,2.87961]
[1723892894982,2.3741,2605.0,2604.5,3.7720124]
[1723892895214,2.3741,2605.0,2604.6,0.55]
[1723892896609,4.08108816,2605.1,2604.6,0.55]
[1723892896610,2.87901,2605.1,2604.6,0.55]
[1723892896796,10.98557816,2605.2,2604.7,0.61181212]
[1723892897019,13.86443816,2605.2,2604.7,0.61181212]
[1723892897819,13.86443816,2605.2,2604.7,1.93881212]
[1723892897820,9.7835,2605.2,2604.7,1.93881212]
[1723892898118,9.7835,2605.2,2604.8,0.24888121]
[1723892898334,10.98557816,2605.2,2604.8,0.24888121]
[1723892898477,10.98557816,2605.2,2604.7,1.327]
[1723892898687,6.41444816,2605.2,2604.6,0.55]
[1723892899224,3.53557816,2605.2,2604.6,3.42951]
[1723892899395,3.53557816,2605.2,2604.7,0.763604]
[1723892900497,6.41443816,2605.2,2604.7,0.763604]
[1723892901919,3.53557816,2605.2,2604.7,0.763604]
[1723892902630,3.53557816,2605.2,2604.7,4.969974]
[1723892902782,2.3335,2605.2,2604.8,1.1019974]
[1723892906110,2.3335,2605.2,2604.8,0.5615404]
[1723892906313,2.3335,2605.2,2604.8,0.55]
[1723892915946,2.3335,2605.2,2603.9,6.69734]
[1723892915947,2.3386,2604.7,2603.9,6.69734]
[1723892916257,3.401358,2604.6,2603.9,6.69731]
[1723892916433,2.3386,2604.5,2603.9,4.20721]
[1723892916654,2.3386,2604.5,2604.0,2.88017]
[1723892918356,2.3386,2604.5,2604.1,0.55]
[1723892918666,2.3386,2604.5,2604.1,3.43005]
[1723892920450,2.3386,2604.5,2604.1,0.55]
[1723892920766,2.6246398,2604.5,2604.0,0.55]
[1723892922758,2.3386,2604.5,2604.0,3.43011]
[1723892922969,2.3386,2604.5,2604.1,4.20707]
[1723892934076,8.65207816,2604.8,2604.1,4.20698]
[1723892934283,7.45,2604.8,2604.5,1.327]
[1723892934815,7.45,2604.8,2604.6,0.55]
[1723892936037,7.45,2604.8,2604.6,3.42943]
[1723892937676,7.45,2604.8,2604.6,0.55]
[1723892940281,2.376,2605.0,2604.6,0.55]
[1723892942445,2.376,2605.0,2604.6,3.42948]
[1723892944047,2.376,2605.0,2604.6,0.55]
[1723892948191,2.376,2605.0,2604.6,3.42949]
[1723892951282,2.376,2605.0,2604.6,0.55]
[1723892955874,11.53098816,2605.2,2604.6,0.55]
[1723892956075,1.15309882,2605.1,2604.6,0.55]
[1723892956420,1.15309882,2605.1,2604.6,3.4295]
[1723892957022,1.15309882,2605.1,2604.6,0.55]
[1723892960502,2.4218,2605.0,2604.6,0.55]
[1723892960821,3.62387816,2605.0,2604.6,0.55]
[1723892961110,0.7655977,2604.9,2604.3,2.87981]
[1723892961295,2.4218,2604.8,2604.4,0.55]
[1723892970029,2.4218,2604.8,2604.3,5.75954]
[1723892970537,2.4218,2604.8,2604.4,2.87973]
[1723892970696,4.20607,2605.0,2604.6,2.87949]
[1723892970697,3.62387816,2605.0,2604.6,2.87949]
[1723892971432,2.4218,2605.0,2604.6,2.87949]
[1723892971739,3.62387816,2605.0,2604.6,2.87949]
[1723892972203,2.4218,2605.0,2604.6,2.87949]
[1723892972383,3.62387816,2605.0,2604.6,2.87949]
[1723892974223,3.62387816,2605.0,2604.5,2.87962]
[1723892974429,1.20207816,2604.9,2604.5,2.87962]
[1723892974604,4.31151906,2605.0,2604.5,2.87962]
[1723892974605,5.51359722,2605.0,2604.5,2.87962]
[1723892976328,1.20207816,2604.9,2604.5,2.87962]
[1723892978444,1.20207816,2604.9,2604.6,2.87949]
[1723892979656,1.92628094,2604.9,2604.4,2.00331883]
[1723892979857,3.47537816,2604.8,2604.3,4.88318395]
[1723892980010,4.5452203,2604.8,2604.3,4.88318395]
[1723892981353,4.5452203,2604.8,2604.3,4.88319001]
[1723892981653,4.5452203,2604.8,2604.3,2.87978]
[1723892981916,4.5452203,2604.8,2604.3,4.88315568]
[1723892982228,4.5452203,2604.8,2604.3,2.87978]
[1723892982432,3.47537816,2604.8,2604.3,4.88315514]
[1723892983125,3.47537816,2604.8,2604.2,0.80245141]
[1723892983333,3.47537816,2604.8,2604.3,1.33561917]
[1723892983334,1.20207816,2604.7,2604.3,1.33561917]
[1723892983671,1.20207816,2604.7,2604.2,2.00346045]
[1723892983820,1.20207816,2604.7,2604.3,1.33564635]
[1723892984023,1.20207816,2604.7,2604.2,2.0034698]
[1723892984352,4.6779263,2604.8,2604.3,1.33562639]
[1723892984557,1.15614218,2604.7,2604.2,2.87995]
[1723892984869,1.15614218,2604.7,2604.3,1.33562591]
[1723892985167,1.15614218,2604.7,2604.3,2.00342183]
[1723892985325,1.15614218,2604.7,2604.3,2.00342739]
[1723892986051,1.15614218,2604.7,2604.1,8.00944141]
[1723892986263,1.15614218,2604.7,2604.2,3.33907903]
[1723892986264,2.4784,2604.4,2604.2,3.33907903]
[1723892986570,2.4784,2604.4,2603.8,4.27609158]
[1723892986571,2.4784,2604.1,2603.8,2.00382195]
[1723892986774,2.4784,2604.1,2603.6,2.88053]
[1723892987065,2.4784,2604.1,2603.6,4.88444402]
[1723892987371,2.4784,2604.1,2603.6,2.88053]
[1723892987534,2.4784,2604.1,2603.7,2.88051]
[1723892987737,2.4784,2604.1,2603.7,4.20751]
[1723892990775,2.4784,2604.1,2603.7,4.20744]
[1723892998504,2.4784,2604.1,2603.7,1.327]
[1723892998708,2.4784,2604.1,2603.3,10.08761412]
[1723892998709,2.88007,2604.1,2603.3,10.08761412]
[1723892998871,5.3569,2603.9,2603.4,4.877]
[1723893000005,2.4766,2603.9,2603.4,7.75783]
[1723893000890,2.4766,2603.9,2603.4,4.75783]
[1723893002466,2.4766,2603.9,2603.4,7.6386]
[1723893002675,2.4766,2603.9,2603.5,2.88073]
[1723893003290,2.4766,2604.2,2603.6,4.20753]
[1723893003506,2.4766,2604.2,2603.6,4.75753]
[1723893006080,2.4766,2604.2,2603.8,2.8804]
[1723893007266,3.01225,2604.2,2603.8,2.8804]
[1723893009277,2.4766,2604.2,2603.9,2.88028]
[1723893009477,2.4766,2604.2,2603.8,4.2074]
[1723893009680,2.4766,2604.2,2603.8,7.08772]
[1723893009979,2.4766,2604.2,2603.9,2.88027]
[1723893010377,1.327,2604.6,2604.0,2.88018]
[1723893010584,2.4766,2604.5,2604.0,2.88018]
[1723893010981,2.4766,2604.5,2604.1,3.43007]
[1723893012195,2.4766,2604.5,2604.1,0.55]
[1723893012423,3.012203,2604.5,2604.1,0.55]
[1723893012743,2.4766,2604.5,2604.2,1.327]
[1723893012883,4.08105816,2605.1,2604.4,2.87973]
[1723893013225,3.0449829,2605.0,2604.4,2.87973]
[1723893014118,5.9240529,2605.0,2604.4,2.87973]
[1723893015426,2.4766,2605.0,2604.4,2.87973]
[1723893015602,2.4766,2605.0,2604.5,0.55]
[1723893017425,2.4754,2604.9,2604.2,2.87986]
[1723893017610,3.55167482,2604.9,2604.3,3.42984]
[1723893019105,6.43086482,2604.9,2604.3,0.55]
[1723893019321,2.4754,2604.8,2604.3,0.55]
[1723893020271,3.6593033,2604.8,2604.3,0.55]
[1723893021233,2.4754,2604.8,2604.3,0.55]
[1723893022678,2.4754,2604.8,2604.3,3.42984]
[1723893023244,2.4754,2604.8,2604.3,0.55]
[1723893023439,5.35472,2604.8,2604.3,0.55]
[1723893023687,2.87932,2604.8,2604.0,2.88014]
[1723893023995,2.4754,2604.4,2603.8,2.88032]
[1723893024287,2.4754,2604.3,2603.8,2.88032]
[1723893025252,2.4754,2604.3,2603.9,2.88026]
[1723893026679,2.4754,2604.3,2603.8,2.88032]
[1723893026888,2.4754,2604.3,2603.9,0.55]
[1723893027381,2.87997,2604.2,2603.6,4.20759]
[1723893027567,2.4754,2604.1,2603.7,0.55]
[1723893028747,2.4754,2604.1,2603.6,4.20753]
[1723893031089,3.0644781,2604.1,2603.6,2.88053]
[1723893031777,2.4754,2604.0,2603.4,4.2078]
[1723893031958,2.4754,2604.0,2603.5,0.55]
[1723893032681,2.4754,2604.0,2603.5,3.43072]
[1723893032839,2.4754,2604.0,2603.6,4.2076]
[1723893033045,2.4754,2604.2,2603.6,6.51682]
[1723893035069,5.35537,2604.2,2603.6,4.20752]
[1723893036575,7.17679182,2604.2,2603.6,4.20752]
[1723893037297,5.35537,2604.2,2603.6,4.20752]
[1723893040900,8.65207816,2604.4,2603.9,2.88028]
[1723893041102,9.9295,2604.4,2603.9,0.475728]
[1723893041421,2.4795,2604.4,2603.8,6.66]
[1723893041604,2.4795,2604.4,2603.9,2.88026]
[1723893041808,1.20207816,2604.5,2604.0,2.88016]
[1723893042029,6.56109816,2604.6,2604.0,2.88016]
[1723893042186,1.20207816,2604.5,2604.0,2.88016]
[1723893042613,2.4795,2604.6,2604.1,2.88004]
[1723893044227,2.4795,2604.6,2604.1,5.33274]
[1723893044718,2.4795,2604.6,2604.2,2.87994]
[1723893051002,8.65207816,2604.7,2604.2,2.87994]
[1723893051200,7.45,2604.7,2604.2,2.87994]
[1723893051499,8.65207816,2604.7,2604.2,2.87994]
[1723893056313,1.20207816,2604.7,2604.2,2.87994]
[1723893057334,2.64037336,2604.7,2604.2,2.87994]
[1723893057846,5.51978336,2604.7,2604.1,3.7797]
[1723893058040,2.8797,2604.5,2603.8,2.88033]
[1723893058241,5.75942,2604.5,2603.9,0.55]
[1723893058441,2.8797,2604.5,2603.9,0.55]
[1723893060151,4.08177816,2604.5,2603.9,0.55]
[1723893060302,0.89472836,2604.4,2603.9,0.55]
[1723893060499,2.4456,2604.3,2603.9,0.55]
[1723893061654,5.32549,2604.3,2603.9,0.55]
[1723893061976,5.32549,2604.3,2603.7,2.3747]
[1723893062281,5.32549,2604.3,2603.5,3.7017]
[1723893062565,2.4456,2604.0,2603.6,0.55]
[1723893062730,2.4456,2604.0,2603.5,0.55]
[1723893062929,2.4456,2604.0,2603.5,3.43066]
[1723893063228,2.4456,2604.0,2603.5,0.55]
[1723893064319,2.4456,2604.0,2603.5,1.877]
[1723893064514,2.4456,2604.0,2603.5,4.75765]
[1723893064859,2.88014,2604.1,2603.5,4.75765]
[1723893065011,2.88014,2604.1,2603.6,2.88062]
[1723893065753,4.54150781,2604.2,2603.6,2.88062]
[1723893066064,2.4645,2604.2,2603.7,7.19201]
[1723893066366,4.08196816,2604.3,2603.7,7.19201]
[1723893067063,1.20207816,2604.3,2603.8,2.88039]
[1723893067964,1.20207816,2604.3,2603.7,1.877]
[1723893068120,3.66657816,2604.2,2603.7,1.877]
[1723893068319,4.39498361,2604.2,2603.7,0.55]
[1723893069568,1.20207816,2604.1,2603.7,0.55]
[1723893069957,4.39498361,2604.2,2603.7,0.55]
[1723893070636,7.27496361,2604.2,2603.7,0.55]
[1723893071366,7.27496361,2604.2,2603.6,2.88054]
[1723893071367,2.4645,2604.0,2603.4,2.88081]
[1723893071531,2.88036,2603.9,2603.3,1.327]
[1723893071733,2.88053,2603.7,2603.1,2.88116]
[1723893071972,2.4645,2603.6,2603.0,5.76243]
[1723893072273,2.4645,2603.6,2603.1,2.88115]
[1723893072962,2.4645,2603.6,2603.2,0.55]
[1723893075786,2.4645,2603.6,2603.1,4.7581]
[1723893076377,2.3543,2603.8,2603.2,5.33263]
[1723893076564,2.3543,2603.8,2603.3,1.327]
[1723893078116,5.23472,2603.8,2603.3,1.327]
[1723893078286,5.23472,2603.8,2603.2,2.88103]
[1723893078607,6.43679816,2603.8,2603.2,2.88103]
[1723893079265,2.3543,2603.7,2603.2,2.88103]
[1723893080712,5.23483,2603.7,2603.1,1.877]
[1723893081411,2.3543,2603.5,2602.9,1.327]
[1723893081622,2.3543,2603.5,2602.7,1.327]
[1723893081920,5.23528,2603.3,2602.7,4.20854]
[1723893083780,5.23528,2603.3,2602.7,4.2086]
[1723893084839,5.23549,2603.1,2602.5,2.88184]
[1723893085120,5.23549,2603.1,2602.6,0.55]
[1723893085329,5.23549,2603.1,2602.2,2.4516]
[1723893085330,2.88119,2603.1,2602.2,5.33374]
[1723893085622,2.88159,2602.8,2602.2,2.88209]
[1723893085776,2.3543,2602.7,2602.2,2.88209]
[1723893088226,2.3543,2602.7,2602.3,1.327]
[1723893089934,2.3543,2602.9,2602.5,1.327]
[1723893090394,10.33108,2603.2,2602.5,1.327]
[1723893090592,10.33108,2603.2,2602.7,4.20857]
[1723893090593,7.45,2603.2,2602.7,4.20857]
[1723893091724,7.45,2603.5,2602.9,1.327]
[1723893091883,7.45,2603.5,2603.1,1.327]
[1723893092084,5.23497,2603.6,2603.1,1.327]
[1723893092498,5.23497,2603.6,2603.1,4.20817]
[1723893092499,2.3543,2603.6,2603.1,4.20817]
[1723893092679,2.3543,2603.6,2603.2,2.88106]
[1723893095987,2.3543,2603.6,2603.0,5.3328]
[1723893096192,2.3543,2603.6,2603.1,0.55]
[1723893097050,2.3543,2603.6,2603.1,3.43115]
[1723893097256,2.3543,2603.6,2603.1,0.55]
[1723893097453,2.3543,2603.6,2603.1,3.43115]
[1723893098696,6.791457,2603.6,2602.8,5.33697]
[1723893098890,2.2827,2603.4,2602.9,0.55]
[1723893099193,2.2827,2603.4,2602.9,3.43138]
[1723893100691,2.2827,2603.4,2602.9,0.55]
[1723893101782,2.2827,2603.4,2602.9,3.43139]
[1723893103505,2.2827,2603.4,2603.0,2.88128]
[1723893111425,2.2827,2603.4,2603.1,3.43116]
[1723893117026,2.2806,2603.6,2603.3,2.88095]
[1723893117223,8.65207816,2603.8,2603.4,2.88083]
[1723893117224,9.7306,2603.8,2603.4,2.88083]
[1723893117445,9.7306,2603.8,2603.5,2.88073]
[1723893118299,7.45,2603.8,2603.5,2.88073]
[1723893121837,2.2806,2604.0,2603.5,2.88073]
[1723893122439,2.2806,2604.0,2603.4,2.88083]
[1723893122639,2.2806,2603.9,2603.4,2.88083]
[1723893122840,5.16096,2603.9,2603.2,2.88102]
[1723893125045,2.4387,2603.8,2603.2,2.88102]
[1723893125250,2.4387,2603.8,2603.2,2.88098]
[1723893127145,2.4387,2603.8,2603.3,2.88095]
[1723893128449,2.4387,2603.8,2603.3,4.20895]
[1723893130208,2.4387,2603.8,2603.5,2.88073]
[1723893134141,2.4387,2603.8,2603.6,2.88058]
[1723893134562,2.4387,2604.0,2603.7,2.88051]
[1723893134864,2.4387,2604.0,2603.7,5.76094]
[1723893135059,2.4387,2604.0,2603.7,2.88043]
[1723893137843,8.65207816,2604.2,2603.9,2.88022]
[1723893138336,7.45,2604.2,2603.9,2.88022]
[1723893139553,3.46387816,2604.3,2603.9,2.88022]
[1723893141479,2.2618,2604.3,2603.9,2.88022]
[1723893143006,3.46387816,2604.3,2603.9,2.88022]
[1723893143292,2.2618,2604.3,2603.9,2.88022]
[1723893144494,2.2618,2604.3,2604.0,2.88011]
[1723893149667,2.2618,2604.3,2603.9,2.88022]
[1723893149864,2.2618,2604.3,2604.0,0.55]
[1723893154696,2.2618,2604.3,2603.9,2.619179]
[1723893157507,4.39130606,2604.3,2603.9,2.619179]
[1723893161504,1.20207816,2604.2,2603.7,2.88046]
[1723893161709,2.2574,2604.1,2603.7,2.88046]
[1723893162213,2.98408161,2604.1,2603.7,2.88046]
[1723893162443,2.2574,2604.1,2603.7,2.88046]
[1723893163681,1.20207816,2604.2,2603.7,5.76089]
[1723893163888,1.20207816,2604.2,2603.7,2.88043]
[1723893167728,1.20207816,2604.2,2603.7,5.76086]
[1723893168093,1.20207816,2604.2,2603.7,2.88043]